fUST/lending_fUST_20240531
["ID","MTS","AMOUNT","RATE_DAILY","PERIOD"]
[328322507,1717163630413,273.37336231,9.9e-05,2]
[328322508,1717163639077,273.37336231,9.9e-05,2]
[328322509,1717163648733,270.79234617,9.9e-05,2]
[328322510,1717163691354,2638.85222435,9.999e-05,2]
[328322512,1717163879061,836.90882909,9.999e-05,2]
[328322513,1717163891257,1499.09486295,9.999e-05,2]
[328322514,1717163903849,371.96487364,9.999e-05,2]
[328322516,1717163944811,523.56927351,9.999e-05,2]
[328322517,1717163950474,758.81052781,9.999e-05,2]
[328322518,1717163967188,181.73931373,9.999e-05,2]
[328322519,1717163977804,174.0426315,9.999e-05,2]
[328322520,1717163983715,2900.13287437,9.999e-05,2]
[328322521,1717163991325,273.37336231,9.9e-05,2]
[328322522,1717164000074,273.37336231,9.9e-05,2]
[328322523,1717164011750,721.24150481,9.999e-05,2]
[328322524,1717164017204,529.43889661,9.999e-05,2]
[328322526,1717164039701,514.70445372,9.999e-05,2]
[328322527,1717164052051,164.38618998,9.999e-05,2]
[328322528,1717164069561,1341.11051274,9.999e-05,2]
[328322529,1717164094385,302.80877693,9.999e-05,2]
[328322530,1717164203360,382.76497944,9.999e-05,2]
[328322531,1717164203387,291.95506617,9.999e-05,2]
[328322541,1717164491741,3377.08356661,9.999e-05,2]
[328322542,1717164530737,216.01852232,9.999e-05,2]
[328322543,1717164565699,155.00930056,9.999e-05,2]
[328322544,1717164580139,1341.11051274,9.999e-05,2]
[328322580,1717164634066,-2110.51409272,0.0001598,2]
[328322581,1717164634076,-44450.52370215,0.0001598,2]
[328322583,1717164634089,-1056.0,0.0001598,2]
[328322613,1717164639204,-8442.25666925,0.0001598,2]
[328322757,1717164644227,-518.07256041,0.0001598,2]
[328322781,1717164644684,-503.01188397,0.0001598,2]
[328322784,1717164644698,-2805.11229578,0.0001598,2]
[328322786,1717164644710,-1716.80574799,0.0001598,2]
[328322788,1717164644719,-10526.1668146,0.00015981,2]
[328322790,1717164644729,-286.7999029,0.00015983,2]
[328322792,1717164644741,-1339.03304429,0.00016077,2]
[328322795,1717164644750,-309.51069648,0.00016078,2]
[328322798,1717164644760,-295.89031792,0.0001608,2]
[328322800,1717164644770,-1471.08503008,0.00016081,2]
[328322802,1717164644780,-39261.08244317,0.00016082,2]
[328322804,1717164644791,-2777.57306768,0.00016082,2]
[328322806,1717164644801,-4028.82693232,0.00016083,2]
[328322934,1717164646312,-481.36571248,0.00016064,2]
[328322936,1717164646321,-850.25956483,0.00016083,2]
[328322950,1717164646543,-20020.91350285,0.00016083,2]
[328322952,1717164646552,-8354.0074147,0.00016284,2]
[328322954,1717164646561,-164.48151,0.00016396,2]
[328322956,1717164646571,-302.62103713,0.00017282,2]
[328322958,1717164646580,-155.06258059,0.00017283,2]
[328322960,1717164646589,-836.40490421,0.00017285,2]
[328322962,1717164646598,-1498.17750343,0.00017285,2]
[328322964,1717164646607,-523.23105641,0.00017285,2]
[328322966,1717164646616,-758.34900191,0.00017285,2]
[328322968,1717164646626,-181.49597322,0.00017285,2]
[328322970,1717164646634,-1044.69294597,0.00017285,2]
[328322971,1717164646645,-1871.01679575,0.00017285,2]
[328322973,1717164646654,-720.74866385,0.00017285,2]
[328322975,1717164646663,-529.09876223,0.00017285,2]
[328322977,1717164646672,-155.02513059,0.00017285,2]
[328322978,1717164646682,-517.45331499,0.00017285,2]
[328322980,1717164646695,-164.28950494,0.00017285,2]
[328322982,1717164646704,-231.13404386,0.00017286,2]
[328322984,1717164646714,-714.08761628,0.00017555,2]
[328322986,1717164646723,-1538.64861826,0.00017655,2]
[328322988,1717164646732,-725.44308254,0.00017656,2]
[328322990,1717164646743,-8740.81344093,0.00017658,2]
[328322992,1717164646752,-286.79990288,0.00018685,2]
[328322994,1717164646761,-714.08761624,0.00019028,2]
[328322997,1717164646772,-179.03991012,0.00019178,2]
[328322998,1717164646781,-166.93979045,0.00019178,2]
[328323000,1717164646791,-456.2418389,0.00019178,2]
[328323002,1717164646800,-500.0,0.00019178,2]
[328323004,1717164646809,-500.0,0.00019178,2]
[328323006,1717164646818,-500.0,0.00019178,2]
[328323008,1717164646827,-500.0,0.00019178,2]
[328323010,1717164646837,-500.0,0.00019178,2]
[328323012,1717164646846,-291.14883113,0.00019178,2]
[328323014,1717164646855,-474.28275,0.00019178,2]
[328323016,1717164646864,-325.92072902,0.00019178,2]
[328323018,1717164646873,-403.42047937,0.00019178,2]
[328323020,1717164646883,-500.0,0.00019178,2]
[328323022,1717164646892,-500.0,0.00019178,2]
[328323024,1717164646901,-500.0,0.00019178,2]
[328323026,1717164646911,-600.0,0.00019178,2]
[328323028,1717164646920,-500.0,0.00019178,2]
[328323030,1717164646929,-500.0,0.00019178,2]
[328323032,1717164646939,-500.0,0.00019178,2]
[328323034,1717164646949,-617.98058425,0.00019178,2]
[328323036,1717164646958,-151.0,0.00019178,2]
[328323038,1717164646967,-224.78412403,0.0002,2]
[328323040,1717164646976,-807.63834648,0.0002,2]
[328323042,1717164646985,-714.08761624,0.00020502,2]
[328323044,1717164646994,-461.58335744,0.00021,2]
[328323046,1717164647003,-286.79990288,0.00021388,2]
[328323048,1717164647016,-288.57042218,0.00021708,2]
[328323050,1717164647026,-4231.65194067,0.00021754,2]
[328323052,1717164647035,-166.666666,0.00021918,2]
[328323054,1717164647044,-1650.406506,0.00021918,2]
[328323056,1717164647055,-714.08761624,0.00021975,2]
[328323058,1717164647064,-156.68308505,0.00022188,2]
[328323060,1717164647073,-927.58017558,0.00022369,2]
[328323062,1717164647083,-166.666666,0.00022431,2]
[328323064,1717164647095,-153.0,0.00022456,2]
[328323066,1717164647104,-153.0,0.00022456,2]
[328323068,1717164647113,-153.0,0.00022456,2]
[328323079,1717164647207,-153.0,0.00022656,2]
[328323081,1717164647217,-153.0,0.00022678,2]
[328323083,1717164647226,-166.666666,0.00022944,2]
[328323085,1717164647236,-291.9275846,0.00022978,2]
[328323087,1717164647245,-194.13394804,0.00023,2]
[328323089,1717164647255,-151.0,0.00023072,3]
[328323091,1717164647264,-307.575736,0.00023272,2]
[328323093,1717164647274,-153.0,0.00023272,2]
[328323095,1717164647283,-151.0,0.00023299,5]
[328323097,1717164647293,-714.08761624,0.00023448,2]
[328323099,1717164647303,-166.666666,0.00023456,2]
[328323101,1717164647312,-151.0,0.00023526,5]
[328323103,1717164647322,-1980.05193058,0.00023544,2]
[328323105,1717164647332,-380.0,0.00023544,2]
[328323107,1717164647342,-847.360001,0.00023544,2]
[328323109,1717164647352,-847.360001,0.00023544,2]
[328323111,1717164647361,-151.0,0.00023544,2]
[328323113,1717164647371,-151.0,0.00023544,2]
[328323115,1717164647380,-269.662192,0.00023544,2]
[328323117,1717164647389,-269.662192,0.00023544,2]
[328323119,1717164647398,-151.0,0.00023544,2]
[328323121,1717164647407,-1262.88985,0.00023544,2]
[328323123,1717164647416,-1262.88985,0.00023544,2]
[328323125,1717164647426,-981.85208174,0.00023546,7]
[328323127,1717164647435,-2117.39226672,0.00023546,2]
[328323129,1717164647447,-19275.03631944,0.00023546,2]
[328323131,1717164647458,-316.62623806,0.00023546,2]
[328323133,1717164647467,-2682.52983983,0.00023546,2]
[328323135,1717164647476,-155.09280497,0.00023546,2]
[328323137,1717164647485,-1153.28512896,0.00023546,2]
[328323139,1717164647495,-2031.43265952,0.00023546,2]
[328323141,1717164647504,-194.73719804,0.00023546,2]
[328323143,1717164647513,-156.63274877,0.00023546,2]
[328323145,1717164647523,-1900.31793063,0.00023546,2]
[328323147,1717164647532,-151.0,0.00023546,2]
[328323149,1717164647541,-151.0,0.00023546,2]
[328323151,1717164647550,-4723.391518,0.00023546,2]
[328323153,1717164647559,-4723.391518,0.00023546,2]
[328323155,1717164647568,-893.167157,0.00023546,2]
[328323157,1717164647577,-893.167157,0.00023546,2]
[328323159,1717164647586,-710.27671,0.00023546,2]
[328323161,1717164647595,-710.27671,0.00023546,2]
[328323163,1717164647604,-151.0,0.00023546,2]
[328323165,1717164647613,-2689.066546,0.00023546,2]
[328323167,1717164647622,-2689.066546,0.00023546,2]
[328323169,1717164647631,-307.141117,0.00023546,2]
[328323171,1717164647641,-307.141117,0.00023546,2]
[328323173,1717164647650,-847.360001,0.00023546,2]
[328323175,1717164647659,-847.360001,0.00023546,2]
[328323177,1717164647669,-847.360001,0.00023546,2]
[328323179,1717164647678,-847.360001,0.00023546,2]
[328323181,1717164647687,-151.0,0.00023546,2]
[328323183,1717164647699,-151.0,0.00023546,2]
[328323185,1717164647708,-151.0,0.00023546,2]
[328323187,1717164647717,-269.662192,0.00023546,2]
[328323189,1717164647726,-269.662192,0.00023546,2]
[328323191,1717164647736,-269.662192,0.00023546,2]
[328323193,1717164647746,-269.662192,0.00023546,2]
[328323195,1717164647755,-197.872139,0.00023546,2]
[328323197,1717164647765,-1262.88985,0.00023546,2]
[328323199,1717164647774,-1262.88985,0.00023546,2]
[328323201,1717164647783,-1262.88985,0.00023546,2]
[328323203,1717164647793,-1262.88985,0.00023546,2]
[328323205,1717164647802,-151.0,0.00023547,2]
[328323207,1717164647812,-151.0,0.00023547,2]
[328323209,1717164647821,-151.0,0.00023547,2]
[328323211,1717164647830,-151.0,0.00023547,2]
[328323213,1717164647839,-151.0,0.00023547,2]
[328323215,1717164647848,-151.0,0.00023547,2]
[328323217,1717164647858,-151.0,0.00023547,2]
[328323219,1717164647867,-151.0,0.00023547,2]
[328323221,1717164647877,-151.0,0.00023547,2]
[328323223,1717164647886,-151.0,0.00023547,2]
[328323225,1717164647896,-160.973874,0.00023547,2]
[328323227,1717164647905,-879.398512,0.00023547,2]
[328323229,1717164647915,-151.0,0.00023547,2]
[328323231,1717164647924,-151.0,0.00023547,2]
[328323233,1717164647933,-879.398512,0.00023547,2]
[328323235,1717164647944,-151.0,0.00023547,2]
[328323237,1717164647953,-879.398512,0.00023547,2]
[328323239,1717164647962,-879.398512,0.00023547,2]
[328323241,1717164647971,-151.0,0.00023547,2]
[328323243,1717164647980,-151.0,0.00023547,2]
[328323245,1717164647989,-254.478749,0.00023547,2]
[328323247,1717164647998,-254.478749,0.00023547,2]
[328323249,1717164648008,-190.741578,0.00023547,2]
[328323251,1717164648021,-254.478749,0.00023547,2]
[328323253,1717164648030,-254.478749,0.00023547,2]
[328323255,1717164648039,-647.467629,0.00023547,2]
[328323257,1717164648048,-647.467629,0.00023547,2]
[328323259,1717164648059,-647.467629,0.00023547,2]
[328323261,1717164648068,-647.467629,0.00023547,2]
[328323263,1717164648077,-620.070365,0.00023547,2]
[328323265,1717164648086,-620.070365,0.00023547,2]
[328323267,1717164648098,-620.070365,0.00023547,2]
[328323269,1717164648108,-647.467629,0.00023547,2]
[328323271,1717164648116,-620.070365,0.00023547,2]
[328323273,1717164648126,-647.467629,0.00023547,2]
[328323275,1717164648136,-647.467629,0.00023547,2]
[328323277,1717164648145,-647.467629,0.00023547,2]
[328323279,1717164648154,-620.070365,0.00023547,2]
[328323281,1717164648163,-620.070365,0.00023547,2]
[328323283,1717164648173,-232.807367,0.00023547,2]
[328323285,1717164648182,-620.070365,0.00023547,2]
[328323287,1717164648192,-620.070365,0.00023547,2]
[328323289,1717164648201,-151.0,0.00023547,2]
[328323291,1717164648211,-152.377552,0.00023547,2]
[328323293,1717164648220,-151.0,0.00023547,2]
[328323295,1717164648229,-166.428341,0.00023547,2]
[328323297,1717164648239,-151.0,0.00023547,2]
[328323299,1717164648247,-151.0,0.00023547,2]
[328323301,1717164648257,-151.0,0.00023547,2]
[328323303,1717164648266,-151.0,0.00023547,2]
[328323305,1717164648276,-151.0,0.00023547,2]
[328323307,1717164648285,-151.0,0.00023547,2]
[328323309,1717164648294,-151.0,0.00023547,2]
[328323311,1717164648304,-161.957791,0.00023547,2]
[328323313,1717164648313,-151.999598,0.00023547,2]
[328323315,1717164648322,-151.0,0.00023547,2]
[328323317,1717164648331,-151.0,0.00023547,2]
[328323319,1717164648340,-151.0,0.00023547,2]
[328323328,1717164648422,-151.0,0.00023547,2]
[328323329,1717164648432,-151.0,0.00023547,2]
[328323330,1717164648442,-157.939075,0.00023547,2]
[328323331,1717164648452,-151.0,0.00023547,2]
[328323332,1717164648461,-151.0,0.00023547,2]
[328323333,1717164648470,-151.0,0.00023547,2]
[328323334,1717164648479,-163.420735,0.00023547,2]
[328323335,1717164648488,-151.0,0.00023547,2]
[328323336,1717164648497,-151.0,0.00023547,2]
[328323337,1717164648506,-151.0,0.00023547,2]
[328323338,1717164648515,-151.0,0.00023547,2]
[328323339,1717164648524,-151.0,0.00023547,2]
[328323340,1717164648533,-151.0,0.00023547,2]
[328323341,1717164648541,-151.0,0.00023547,2]
[328323342,1717164648550,-151.0,0.00023547,2]
[328323343,1717164648559,-151.0,0.00023547,2]
[328323344,1717164648568,-151.0,0.00023547,2]
[328323346,1717164648577,-151.0,0.00023547,2]
[328323348,1717164648586,-151.0,0.00023547,2]
[328323350,1717164648596,-151.0,0.00023547,2]
[328323352,1717164648605,-151.0,0.00023547,2]
[328323354,1717164648614,-151.0,0.00023547,2]
[328323356,1717164648623,-151.0,0.00023547,2]
[328323358,1717164648632,-182.198015,0.00023547,2]
[328323361,1717164648642,-151.0,0.00023547,2]
[328323363,1717164648651,-151.0,0.00023547,2]
[328323365,1717164648661,-151.0,0.00023547,2]
[328323367,1717164648669,-266.934933,0.00023547,2]
[328323369,1717164648679,-151.0,0.00023547,2]
[328323370,1717164648688,-151.0,0.00023547,2]
[328323373,1717164648699,-221.739,0.00023547,2]
[328323375,1717164648709,-4723.391518,0.00023547,2]
[328323376,1717164648718,-4456.3852655,0.00023547,2]
[328324389,1717165832790,-166.666666,0.00021918,2]
[328324390,1717165832800,-755.94626067,0.00022087,2]
[328324391,1717165832810,-7070.92203859,0.00022116,2]
[328324392,1717165832821,-568.79314805,0.00022116,2]
[328324393,1717165832833,-677.83,0.00022116,2]
[328324480,1717165839008,-6976.63879666,0.00022116,2]
[328324482,1717165839018,-187.589961,0.00022187,2]
[328324485,1717165839029,-166.666666,0.00022474,2]
[328324487,1717165839039,-194.13394804,0.00023,2]
[328324489,1717165839049,-291.9275846,0.00023,2]
[328324491,1717165839061,-306.0,0.00023,2]
[328324494,1717165839071,-583.804585,0.00023,2]
[328324497,1717165839082,-166.666666,0.0002303,2]
[328324499,1717165839092,-4231.65194067,0.00023037,2]
[328324501,1717165839102,-204.6516682,0.00023041,2]
[328324503,1717165839113,-402.3924714,0.00023041,2]
[328324505,1717165839124,-153.0,0.000231,2]
[328324507,1717165839134,-204.8983228,0.000231,2]
[328324509,1717165839145,-288.57042218,0.00023143,2]
[328324511,1717165839155,-204.8983228,0.00023397,2]
[328324513,1717165839165,-335.51014966,0.00023443,2]
[328324515,1717165839178,-1457.11062668,0.00023499,10]
[328324517,1717165839191,-56229.77970269,0.000235,2]
[328324518,1717165839201,-500.0,0.00023505,2]
[328324520,1717165839211,-368.42670783,0.00023505,2]
[328324521,1717165839221,-602.73882461,0.00023505,2]
[328324523,1717165839233,-500.0,0.00023505,2]
[328324525,1717165839244,-29709.26013382,0.00023506,2]
[328324528,1717165839254,-2109.94083119,0.00023521,2]
[328324530,1717165839265,-153.0,0.00023528,2]
[328324532,1717165839275,-2678.02258047,0.00023543,2]
[328324534,1717165839286,-7421.7890694,0.00023543,2]
[328324537,1717165839308,-1980.05193058,0.00023543,2]
[328324539,1717165839322,-640.59988326,0.00023543,2]
[328324541,1717165839333,-162.76136217,0.00023543,2]
[328324543,1717165839344,-6060.94208028,0.00023545,2]
[328324545,1717165839354,-45203.43101031,0.00023545,2]
[328324547,1717165839365,-1848.19015495,0.00023545,2]
[328324549,1717165839377,-3671.95866013,0.00023545,2]
[328324551,1717165839387,-2117.39226672,0.00023545,2]
[328324553,1717165839403,-1358.69146633,0.00023547,7]
[328324555,1717165839413,-224.83709056,0.00023547,2]
[328324557,1717165839425,-3985.31374501,0.00023547,2]
[328324559,1717165839436,-12830.91021921,0.00023547,2]
[328324561,1717165839446,-151.0,0.00023547,2]
[328324563,1717165839458,-151.0,0.00023547,2]
[328324565,1717165839469,-151.0,0.00023547,2]
[328324567,1717165839484,-151.0,0.00023547,2]
[328324570,1717165839496,-151.0,0.00023547,2]
[328324572,1717165839507,-151.0,0.00023547,2]
[328324574,1717165839517,-151.0,0.00023547,2]
[328324576,1717165839527,-260.06252,0.00023547,2]
[328324578,1717165839539,-151.0,0.00023547,2]
[328324580,1717165839549,-151.0,0.00023547,2]
[328324582,1717165839560,-151.0,0.00023547,2]
[328324584,1717165839571,-151.0,0.00023547,2]
[328324586,1717165839582,-151.0,0.00023547,2]
[328324588,1717165839593,-151.0,0.00023547,2]
[328324590,1717165839605,-151.0,0.00023547,2]
[328324592,1717165839616,-151.0,0.00023547,2]
[328324594,1717165839626,-151.0,0.00023547,2]
[328324596,1717165839637,-151.0,0.00023547,2]
[328324598,1717165839647,-188.763535,0.00023547,2]
[328324600,1717165839657,-188.763535,0.00023547,2]
[328324602,1717165839668,-188.763535,0.00023547,2]
[328324604,1717165839683,-188.763535,0.00023547,2]
[328324606,1717165839694,-188.763535,0.00023547,2]
[328324608,1717165839705,-188.763535,0.00023547,2]
[328324610,1717165839715,-703.51881,0.00023547,2]
[328324612,1717165839726,-703.51881,0.00023547,2]
[328324614,1717165839737,-703.51881,0.00023547,2]
[328324616,1717165839748,-703.51881,0.00023547,2]
[328324618,1717165839759,-203.582999,0.00023547,2]
[328324633,1717165839892,-203.582999,0.00023547,2]
[328324635,1717165839904,-203.582999,0.00023547,2]
[328324637,1717165839914,-203.582999,0.00023547,2]
[328324640,1717165839926,-388.480577,0.00023547,2]
[328324642,1717165839936,-372.042219,0.00023547,2]
[328324644,1717165839947,-388.480577,0.00023547,2]
[328324646,1717165839957,-372.042219,0.00023547,2]
[328324648,1717165839967,-372.042219,0.00023547,2]
[328324650,1717165839979,-372.042219,0.00023547,2]
[328324652,1717165839989,-388.480577,0.00023547,2]
[328324654,1717165840001,-388.480577,0.00023547,2]
[328324656,1717165840011,-151.0,0.00023547,2]
[328324658,1717165840022,-151.0,0.00023547,2]
[328324661,1717165840033,-151.0,0.00023547,2]
[328324663,1717165840042,-151.0,0.00023547,2]
[328324664,1717165840054,-884.022895,0.00023547,2]
[328324666,1717165840063,-323.26600688,0.00023547,2]
[328324667,1717165840078,-334.39650053,0.00023547,2]
[328325075,1717165843967,-226.36038759,0.00023547,2]
[328325077,1717165843977,-884.022895,0.00023547,2]
[328325079,1717165843987,-884.022895,0.00023547,2]
[328325081,1717165843996,-151.0,0.00023547,2]
[328325083,1717165844005,-803.850441,0.00023547,2]
[328325085,1717165844014,-803.850441,0.00023547,2]
[328325087,1717165844023,-803.850441,0.00023547,2]
[328325089,1717165844033,-803.850441,0.00023547,2]
[328325091,1717165844042,-639.249039,0.00023547,2]
[328325093,1717165844051,-639.249039,0.00023547,2]
[328325095,1717165844060,-639.249039,0.00023547,2]
[328325097,1717165844069,-639.249039,0.00023547,2]
[328325099,1717165844079,-151.0,0.00023547,2]
[328325101,1717165844088,-151.0,0.00023547,2]
[328325103,1717165844098,-2420.159891,0.00023547,2]
[328325105,1717165844107,-2420.159891,0.00023547,2]
[328325107,1717165844116,-2420.159891,0.00023547,2]
[328325109,1717165844125,-2420.159891,0.00023547,2]
[328325111,1717165844135,-3901.745913,0.00023547,2]
[328325113,1717165844144,-3901.745913,0.00023547,2]
[328325115,1717165844153,-3901.745913,0.00023547,2]
[328325117,1717165844163,-456.98025317,0.00023547,2]
[328325119,1717165844177,-3444.76565983,0.00023547,2]
[328325121,1717165844189,-593.152001,0.00023547,2]
[328325123,1717165844199,-593.152001,0.00023547,2]
[328325125,1717165844209,-151.0,0.00023547,2]
[328325127,1717165844219,-291.527006,0.00023547,2]
[328325129,1717165844228,-291.527006,0.00023547,2]
[328325131,1717165844238,-151.0,0.00023547,2]
[328325132,1717165844247,-151.0,0.00023548,2]
[328325133,1717165844255,-151.0,0.00023548,2]
[328325134,1717165844264,-151.0,0.00023548,2]
[328325135,1717165844273,-188.763535,0.00023548,2]
[328325136,1717165844283,-188.763535,0.00023548,2]
[328325137,1717165844291,-188.763535,0.00023548,2]
[328325138,1717165844300,-188.763535,0.00023548,2]
[328325139,1717165844309,-703.51881,0.00023548,2]
[328325140,1717165844318,-703.51881,0.00023548,2]
[328325141,1717165844328,-703.51881,0.00023548,2]
[328325142,1717165844336,-9.90709377,0.00023548,2]
[328325330,1717166146478,20000.0,0.00028,120]
[328325333,1717166165574,20000.0,0.000275,30]
[328325339,1717166190021,20000.0,0.00025666,120]
[328325351,1717166283343,-1000.0,0.00033241,120]
[328325352,1717166283367,-1000.0,0.00033241,120]
[328325353,1717166283390,-522.7,0.00033241,120]
[328325358,1717166429180,10000.0,0.00023288,29]
[328325359,1717166431449,10100.21118355,0.00033229,33]
[328325360,1717166445783,1000000.0,0.00023288,29]
[328325361,1717166466607,1000000.0,0.00023288,29]
[328325362,1717166470080,1000001.0,0.00023288,29]
[328325363,1717166473694,1000002.0,0.00023288,29]
[328325364,1717166489997,1000003.0,0.00023288,29]
[328325365,1717166493065,1000004.0,0.00023288,29]
[328325366,1717166496738,1000005.0,0.00023288,29]
[328325367,1717166501277,1000008.0,0.00023288,29]
[328325368,1717166514208,1000009.0,0.00023288,29]
[328325369,1717166529790,989968.0,0.00023288,29]
[328325370,1717166529813,10042.0,0.00023288,29]
[328325371,1717166533304,1000011.0,0.00023288,29]
[328325372,1717166536286,1000012.0,0.00023288,29]
[328325373,1717166541888,1000013.0,0.00023288,29]
[328325374,1717166544745,1000014.0,0.00023288,29]
[328325376,1717166551955,2000016.0,0.00023288,29]
[328325377,1717166556536,2000018.0,0.00023288,29]
[328325378,1717166592737,1989874.0,0.00023288,29]
[328325382,1717166768318,292.14570031,9.999e-05,2]
[328325383,1717166799263,2092.66358583,9.999e-05,2]
[328325384,1717166810301,155.00155002,9.999e-05,2]
[328325385,1717166813282,992.85011881,9.999e-05,2]
[328325386,1717166826316,201.79933286,9.999e-05,2]
[328325444,1717167032966,-259.02814002,0.00017465,2]
[328325446,1717167032976,-357.94045495,0.00019999,2]
[328325448,1717167032987,-302.0,0.00019999,2]
[328325531,1717167038799,-998.48650321,0.00019999,2]
[328325533,1717167038814,-6248.41558324,0.00019999,2]
[328325534,1717167038824,-1179.0,0.0002,5]
[328325535,1717167038834,-1152.8486069,0.00021623,2]
[328325536,1717167038845,-166.666666,0.00021918,2]
[328325537,1717167038855,-166.666666,0.00022431,2]
[328325538,1717167038865,-634.67771895,0.00022501,2]
[328325539,1717167038874,-166.666666,0.00022944,2]
[328325540,1717167038886,-639.8696077,0.00023,2]
[328325541,1717167038897,-408.9890441,0.00023,2]
[328325542,1717167038907,-4231.65194067,0.00023142,2]
[328325543,1717167038916,-194.13394804,0.00023234,2]
[328325544,1717167038927,-288.57042218,0.00023235,2]
[328325545,1717167038936,-3985.31374501,0.00023288,2]
[328325546,1717167038946,-12830.91021921,0.00023288,2]
[328325547,1717167038956,-224.83709056,0.00023288,2]
[328325548,1717167038966,-1474.28234133,0.00023288,2]
[328325549,1717167038976,-10504.72281843,0.00023288,2]
[328325550,1717167038986,-166.666666,0.00023456,2]
[328325551,1717167038995,-302.71490703,0.00023498,2]
[328325552,1717167039005,-2682.52983983,0.00023498,2]
[328325553,1717167039015,-523.40016496,0.00023498,2]
[328325554,1717167039026,-946.57501057,0.00023499,2]
[328325555,1717167039036,-500.0,0.00023499,2]
[328325556,1717167039046,-328.89600997,0.00023499,2]
[328325557,1717167039055,-303.23545067,0.00023499,2]
[328325558,1717167039065,-500.0,0.00023499,2]
[328325559,1717167039075,-465.60104146,0.00023499,2]
[328325560,1717167039085,-500.0,0.00023499,2]
[328325561,1717167039095,-500.0,0.00023499,2]
[328325562,1717167039104,-500.0,0.00023499,2]
[328325563,1717167039113,-500.0,0.00023499,2]
[328325564,1717167039123,-500.0,0.00023499,2]
[328325565,1717167039133,-500.0,0.00023499,2]
[328325566,1717167039143,-500.0,0.00023499,2]
[328325567,1717167039154,-500.0,0.00023499,2]
[328325568,1717167039164,-500.0,0.00023499,2]
[328325569,1717167039174,-500.0,0.00023499,2]
[328325570,1717167039183,-320.72434127,0.00023499,2]
[328325571,1717167039193,-500.0,0.00023499,2]
[328325572,1717167039202,-500.0,0.00023499,2]
[328325573,1717167039212,-500.0,0.00023499,2]
[328325574,1717167039222,-500.0,0.00023499,2]
[328325575,1717167039232,-500.0,0.00023499,2]
[328325576,1717167039242,-500.0,0.00023499,2]
[328325577,1717167039252,-500.0,0.00023499,2]
[328325578,1717167039261,-500.0,0.00023499,2]
[328325579,1717167039271,-500.0,0.00023499,2]
[328325580,1717167039280,-500.0,0.00023499,2]
[328325581,1717167039290,-5827.61291723,0.000235,2]
[328325582,1717167039602,-12071.41432768,0.000235,2]
[328325901,1717167044518,-23031.56223265,0.000235,2]
[328325903,1717167044529,-14254.78611334,0.000235,2]
[328325905,1717167044539,-2724.887553,0.00023546,2]
[328325907,1717167044548,-20000.0,0.00023666,2]
[328325909,1717167044557,-151.0,0.00023711,5]
[328325911,1717167044566,-268.40811972,0.00023782,2]
[328325913,1717167044575,-20850.09821394,0.0002385,2]
[328325915,1717167044586,-2692.4,0.0002385,2]
[328326170,1717167047295,-645.95745847,0.0002385,2]
[328326172,1717167047307,-406.53887778,0.0002385,2]
[328326343,1717167610060,154.9690062,9.999e-05,2]
[328326344,1717167618169,154.9690062,9.999e-05,2]
[328326390,1717168233045,-7906.8425414,0.00018661,2]
[328326392,1717168233055,-2035.8293922,0.00018662,2]
[328326394,1717168233064,-150.0,0.000189,2]
[328326396,1717168233074,-528.16653539,0.00020999,4]
[328326397,1717168233083,-1706.75546904,0.00021,2]
[328326400,1717168233094,-612.735,0.00021,2]
[328326551,1717168239669,-175.55664683,0.00021,2]
[328326553,1717168239682,-560.7179945,0.00021166,2]
[328326555,1717168239694,-255.3580576,0.0002122,2]
[328326557,1717168239704,-1349.0268669,0.00021731,2]
[328326559,1717168239714,-1591.67522873,0.00021835,2]
[328326582,1717168239922,-941.43610251,0.00021835,2]